bitfinex-derivatives/quotes_BTCF0:USTF0_20241103
["timestamp","ask_amount","ask_price","bid_price","bid_amount"]
[1730656972334,0.3628,68414.0,68413.0,0.09453619]
[1730656972528,0.3628,68414.0,68413.0,0.20715426]
[1730656972827,0.3628,68414.0,68413.0,0.75352854]
[1730656972828,0.003,68414.0,68413.0,0.75352854]
[1730656973227,0.3608,68421.0,68413.0,0.91299086]
[1730656973437,0.3608,68421.0,68416.0,0.073106]
[1730656973634,0.3608,68421.0,68417.0,0.20692478]
[1730656973822,0.3608,68421.0,68418.0,0.20692478]
[1730656974129,0.3608,68421.0,68416.0,0.073106]
[1730656974130,0.3608,68421.0,68419.0,0.20692478]
[1730656974329,0.3608,68421.0,68420.0,0.09453619]
[1730656975234,0.3678,68421.0,68420.0,0.09453619]
[1730656975428,0.3678,68421.0,68420.0,0.18208687]
[1730656975738,0.3608,68421.0,68420.0,0.18142805]
[1730656975935,0.3828,68421.0,68420.0,0.18242805]
[1730656976533,0.3828,68421.0,68420.0,0.18242658]
[1730656976835,0.3828,68421.0,68420.0,0.18342658]
[1730656977735,0.3828,68421.0,68420.0,0.08955068]
[1730656978233,0.022,68421.0,68420.0,0.08955068]
[1730656979333,0.022,68421.0,68420.0,0.12521184]
[1730656979643,0.022,68421.0,68420.0,0.03766116]
[1730656981429,0.022,68421.0,68420.0,0.11076416]
[1730656981829,0.022,68421.0,68420.0,0.17386416]
[1730656982731,0.012,68421.0,68420.0,0.17286416]
[1730656983037,0.3608,68426.0,68420.0,0.17686416]
[1730656984232,0.3608,68426.0,68420.0,0.17386416]
[1730656984439,0.3648,68426.0,68420.0,0.17386416]
[1730656985027,0.3648,68426.0,68420.0,0.17186416]
[1730656985336,0.3698,68426.0,68420.0,0.17186416]
[1730656986038,0.009,68426.0,68420.0,0.17186416]
[1730656986235,0.001,68426.0,68420.0,0.18086416]
[1730656986536,0.002,68426.0,68420.0,0.19086416]
[1730656986732,0.002,68426.0,68420.0,0.11776116]
[1730656987128,0.001,68426.0,68420.0,0.10776116]
[1730656987430,0.002,68426.0,68420.0,0.11776116]
[1730656987940,0.001,68426.0,68420.0,0.10776116]
[1730656988134,0.002,68426.0,68420.0,0.11776116]
[1730656988330,0.001,68426.0,68420.0,0.10876116]
[1730656988527,0.002,68426.0,68420.0,0.11776116]
[1730656988924,0.074097,68426.0,68424.0,0.07282084]
[1730656989132,0.073098,68425.0,68424.0,0.07282084]
[1730656989335,0.073098,68425.0,68424.0,0.16647988]
[1730656990031,0.073098,68425.0,68424.0,0.16647383]
[1730656990533,0.074098,68425.0,68424.0,0.10365299]
[1730656991357,0.075098,68425.0,68424.0,0.11265299]
[1730656992033,0.075098,68425.0,68424.0,0.019]
[1730656992343,0.074098,68425.0,68424.0,0.01]
[1730656992538,0.075098,68425.0,68424.0,0.019]
[1730656993032,0.074098,68425.0,68424.0,0.008]
[1730656993232,0.075098,68425.0,68424.0,0.017]
[1730656993836,0.074098,68425.0,68424.0,0.008]
[1730656994030,0.075098,68425.0,68424.0,0.016]
[1730656995245,0.074098,68425.0,68424.0,0.04453688]
[1730656995446,0.075098,68425.0,68424.0,0.05153688]
[1730656995652,0.002,68425.0,68424.0,0.05153688]
[1730656995953,0.001,68425.0,68424.0,0.04453688]
[1730656996249,0.01,68425.0,68424.0,0.03753688]
[1730656997143,0.017,68425.0,68424.0,0.03853688]
[1730656997343,0.017,68425.0,68424.0,0.11163588]
[1730656999152,0.017,68425.0,68424.0,0.24378334]
[1730656999450,0.017,68425.0,68424.0,0.24378235]
[1730657004060,0.017,68425.0,68424.0,0.75532135]
[1730657005737,0.017,68425.0,68424.0,0.68222235]
[1730657005953,0.017,68425.0,68424.0,0.24378235]
[1730657006462,0.017,68425.0,68424.0,0.68222235]
[1730657007148,0.017,68425.0,68424.0,0.03853688]
[1730657011361,0.017,68425.0,68424.0,0.10304263]
[1730657014145,0.017,68425.0,68424.0,0.19664467]
[1730657015347,0.017,68425.0,68424.0,0.30822611]
[1730657022457,0.017,68425.0,68424.0,0.30829747]
[1730657025156,0.090098,68425.0,68424.0,0.24379172]
[1730657025363,0.15460375,68425.0,68424.0,0.24379172]
[1730657026456,0.528538,68425.0,68424.0,0.09363979]
[1730657026655,0.45544,68425.0,68422.0,0.08761874]
[1730657026866,0.06450575,68423.0,68421.0,0.08761874]
[1730657027063,0.3608,68422.0,68421.0,0.08761874]
[1730657027264,0.3608,68422.0,68412.0,0.3608]
[1730657027567,0.3608,68422.0,68410.0,0.10199089]
[1730657027568,0.073103,68420.0,68419.0,0.08758096]
[1730657027765,0.073103,68420.0,68407.0,0.32946]
[1730657027766,0.07311,68414.0,68407.0,0.03569173]
[1730657028065,0.3608,68408.0,68398.0,0.46279089]
[1730657028264,0.073126,68399.0,68398.0,0.3608]
[1730657028464,0.073126,68399.0,68398.0,0.39511924]
[1730657028659,0.073126,68399.0,68398.0,0.03431924]
[1730657028875,0.073126,68399.0,68394.0,0.0314]
[1730657029057,0.073126,68399.0,68395.0,0.13763475]
[1730657029453,0.073126,68399.0,68395.0,0.06450575]
[1730657030665,0.074126,68399.0,68395.0,0.07250575]
[1730657030967,0.075126,68399.0,68398.0,0.008]
[1730657031267,0.075126,68399.0,68398.0,0.08080757]
[1730657031460,0.074126,68399.0,68395.0,0.008]
[1730657031660,0.075126,68399.0,68395.0,0.016]
[1730657032060,0.074126,68399.0,68395.0,0.008]
[1730657032266,0.075126,68399.0,68398.0,0.08077821]
[1730657032762,0.075126,68399.0,68398.0,0.07277821]
[1730657032968,0.002,68399.0,68398.0,0.07277821]
[1730657033170,0.433916,68408.0,68398.0,0.09834199]
[1730657033370,0.073118,68406.0,68405.0,0.05820758]
[1730657033869,0.073118,68406.0,68400.0,0.07275948]
[1730657034069,0.073118,68406.0,68401.0,0.07275948]
[1730657034261,0.3608,68408.0,68400.0,0.07275948]
[1730657034458,0.073117,68407.0,68406.0,0.05819455]
[1730657034658,0.073118,68406.0,68405.0,0.05819455]
[1730657034863,0.07312,68404.0,68402.0,0.05819455]
[1730657035063,0.073121,68403.0,68402.0,0.05819455]
[1730657035263,0.073122,68402.0,68401.0,0.05819455]
[1730657035462,0.433922,68402.0,68401.0,0.05819455]
[1730657035670,0.433922,68402.0,68395.0,0.07275948]
[1730657036171,0.3608,68402.0,68395.0,0.07275948]
[1730657036385,0.433922,68402.0,68401.0,0.0581754]
[1730657036566,0.073123,68401.0,68400.0,0.0581754]
[1730657037879,0.075123,68401.0,68400.0,0.0721754]
[1730657041271,0.075123,68401.0,68400.0,0.014]
[1730657043367,0.002,68401.0,68400.0,0.014]
[1730657046076,0.002,68401.0,68400.0,0.3748]
[1730657046275,0.09872,68413.0,68400.0,0.3748]
[1730657046577,0.07311,68414.0,68404.0,0.09834199]
[1730657046778,0.07311,68414.0,68405.0,0.106018]
[1730657046970,0.3608,68409.0,68405.0,0.0329]
[1730657047175,0.073118,68406.0,68405.0,0.0329]
[1730657047876,0.073123,68401.0,68400.0,0.3728]
[1730657048191,0.073123,68401.0,68400.0,0.3698]
[1730657048680,0.073123,68401.0,68400.0,0.009]
[1730657049779,0.073123,68401.0,68400.0,0.014]
[1730657049975,0.074123,68401.0,68400.0,0.014]
[1730657050175,0.074123,68401.0,68400.0,0.005]
[1730657050785,0.075123,68401.0,68400.0,0.016]
[1730657051404,0.002,68401.0,68400.0,0.08053109]
[1730657053780,0.002,68401.0,68400.0,0.016]
[1730657054687,0.002,68401.0,68400.0,0.19658927]
[1730657055083,0.002,68401.0,68400.0,0.10910545]
[1730657055280,0.002,68401.0,68400.0,0.2202051]
[1730657056383,0.073117,68407.0,68400.0,0.2202051]
[1730657056583,0.073117,68407.0,68401.0,0.2042051]
[1730657056791,0.073117,68407.0,68402.0,0.2042051]
[1730657057088,0.073117,68407.0,68406.0,0.08764043]
[1730657057280,0.073117,68407.0,68406.0,0.20439283]
[1730657057584,0.074117,68407.0,68406.0,0.20439283]
[1730657057883,0.075117,68407.0,68406.0,0.20439283]
[1730657058089,0.075117,68407.0,68406.0,0.09310545]
[1730657058482,0.075117,68407.0,68406.0,0.10210545]
[1730657059285,0.075117,68407.0,68406.0,0.10710545]
[1730657061786,0.002,68407.0,68406.0,0.21835066]
[1730657062393,0.002,68407.0,68406.0,0.28288175]
[1730657064196,0.002,68407.0,68406.0,0.31802111]
[1730657064499,0.075117,68407.0,68406.0,0.25349002]
[1730657065085,0.075117,68407.0,68406.0,0.10710545]
[1730657067690,0.075117,68407.0,68406.0,0.10737808]
[1730657068400,0.435917,68407.0,68406.0,0.10737808]
[1730657071091,0.075117,68407.0,68406.0,0.10737808]
[1730657071392,0.435917,68407.0,68406.0,0.10737808]
[1730657072198,0.075117,68407.0,68406.0,0.10737808]
[1730657072393,0.075117,68407.0,68406.0,0.21881957]
[1730657072599,0.435917,68407.0,68406.0,0.21881957]
[1730657073303,0.435917,68407.0,68406.0,0.21879337]
[1730657073898,0.075117,68407.0,68406.0,0.21879337]
[1730657074104,0.435917,68407.0,68406.0,0.21879337]
[1730657075792,0.435917,68407.0,68406.0,0.10744593]
[1730657077001,0.435917,68407.0,68406.0,0.10740817]
[1730657077297,0.435917,68407.0,68406.0,0.21873779]
[1730657077507,0.435917,68407.0,68406.0,0.10740817]
[1730657078408,0.435917,68407.0,68406.0,0.21873418]
[1730657079004,0.075117,68407.0,68406.0,0.21873418]
[1730657079202,0.435917,68407.0,68406.0,0.21873418]
[1730657079597,0.435917,68407.0,68406.0,0.19514209]
[1730657079805,0.435917,68407.0,68406.0,0.10740817]
[1730657080010,0.435917,68407.0,68406.0,0.19514209]
[1730657080195,0.435917,68407.0,68406.0,0.10740817]
[1730657086404,0.435917,68407.0,68406.0,0.10759936]
[1730657089704,0.435917,68407.0,68406.0,0.18068999]
[1730657090910,0.435917,68407.0,68406.0,0.08709063]
[1730657091298,0.435917,68407.0,68406.0,0.014]
[1730657091498,0.435917,68407.0,68406.0,0.08709063]
[1730657092206,0.435917,68407.0,68406.0,0.18077772]
[1730657092801,0.796717,68407.0,68406.0,0.18077772]
[1730657093310,0.796717,68407.0,68406.0,0.10768709]
[1730657095711,0.796717,68407.0,68406.0,0.10770262]
[1730657100114,0.895317,68407.0,68406.0,0.10770262]
[1730657100412,0.895317,68407.0,68406.0,0.10771597]
[1730657102809,1.32529109,68407.0,68402.0,0.07310533]
[1730657103113,0.073122,68402.0,68401.0,0.0301]
[1730657104316,0.794722,68402.0,68401.0,0.0301]
[1730657104520,0.893322,68402.0,68401.0,0.0301]
[1730657104726,0.899322,68402.0,68401.0,0.10320533]
[1730657105415,0.899322,68402.0,68401.0,0.0301]
[1730657105811,0.907322,68402.0,68401.0,0.0301]
[1730657107017,0.907322,68402.0,68401.0,0.19711225]
[1730657107018,0.014,68402.0,68401.0,0.19711225]
[1730657107228,0.298217,68409.0,68401.0,0.29996639]
[1730657107427,0.06453109,68413.0,68407.0,0.08766367]
[1730657107725,0.073115,68409.0,68408.0,0.18155292]
[1730657107910,0.073115,68409.0,68408.0,0.18085399]
[1730657108223,0.073115,68409.0,68408.0,0.09319032]
[1730657108419,0.3608,68415.0,68408.0,0.18083421]
[1730657108716,0.3608,68415.0,68412.0,0.15217498]
[1730657108920,0.3608,68415.0,68414.0,0.08764389]
[1730657109119,0.3608,68415.0,68414.0,0.18083421]
[1730657109326,0.3608,68415.0,68414.0,0.09319032]
[1730657109521,0.3628,68415.0,68414.0,0.18083421]
[1730657109727,0.3628,68415.0,68414.0,0.18050808]
[1730657110214,0.3688,68415.0,68414.0,0.18150808]
[1730657110419,0.3688,68415.0,68414.0,0.09386419]
[1730657111206,0.008,68415.0,68414.0,0.09386419]
[1730657111413,0.014,68415.0,68414.0,0.09486419]
[1730657111617,0.014,68415.0,68414.0,0.24300808]
[1730657112513,0.014,68415.0,68414.0,0.15536419]
[1730657113922,0.014,68415.0,68414.0,0.22847419]
[1730657115119,0.073098,68425.0,68414.0,0.55367533]
[1730657115311,0.073098,68425.0,68418.0,0.073105]
[1730657116325,0.087098,68425.0,68418.0,0.073105]
[1730657116922,0.087098,68425.0,68418.0,0.074105]
[1730657117224,0.101098,68425.0,68418.0,0.074105]
[1730657117625,0.028,68425.0,68421.0,0.07277359]
[1730657117821,0.014,68425.0,68422.0,0.073101]
[1730657118126,0.028,68425.0,68422.0,0.073101]
[1730657118826,0.028,68425.0,68420.0,0.07277359]
[1730657119031,0.016,68425.0,68422.0,0.001]
[1730657119226,0.016,68425.0,68424.0,0.05818153]
[1730657119728,0.016,68425.0,68422.0,0.001]
[1730657119911,0.016,68425.0,68422.0,0.002]
[1730657120724,0.014,68425.0,68424.0,0.001]
[1730657120919,0.014,68425.0,68424.0,0.002]
[1730657120920,0.016,68425.0,68424.0,0.002]
[1730657121526,0.016,68425.0,68424.0,0.001]
[1730657122924,0.023,68425.0,68422.0,0.002]
[1730657123125,0.009,68425.0,68422.0,0.001]
[1730657123325,0.023,68425.0,68424.0,0.001]
[1730657123631,0.023,68425.0,68424.0,0.002]
[1730657123632,0.096098,68425.0,68424.0,0.002]
[1730657124025,0.073098,68425.0,68419.0,0.39522265]
[1730657124329,0.073098,68425.0,68422.0,0.002]
[1730657124330,0.096098,68425.0,68422.0,0.002]
[1730657124518,0.0731,68423.0,68422.0,0.002]
[1730657124916,0.0731,68423.0,68422.0,0.001]
[1730657125628,0.0731,68423.0,68419.0,0.39522265]
[1730657126130,0.073101,68422.0,68419.0,0.39522265]
[1730657126830,0.073101,68422.0,68420.0,0.05818153]
[1730657127622,0.17141314,68421.0,68420.0,0.05818153]
[1730657127931,0.09831114,68421.0,68419.0,0.45540418]
[1730657128130,0.073103,68420.0,68419.0,0.45540418]
[1730657128634,0.073103,68420.0,68419.0,0.45440418]
[1730657129827,0.073103,68420.0,68419.0,0.45340418]
[1730657130033,0.073103,68420.0,68419.0,0.45440418]
[1730657130034,0.082103,68420.0,68419.0,0.45440418]
[1730657130626,0.091103,68420.0,68419.0,0.45540418]
[1730657131235,0.091103,68420.0,68419.0,0.39722265]
[1730657131433,0.091103,68420.0,68419.0,0.45534329]
[1730657132536,0.091103,68420.0,68419.0,0.09454329]
[1730657132836,0.091103,68420.0,68419.0,0.45534329]
[1730657133034,0.091103,68420.0,68419.0,0.03642265]
[1730657133237,0.091103,68420.0,68419.0,0.09454329]
[1730657133435,0.091103,68420.0,68419.0,0.03642265]
[1730657134225,0.091103,68420.0,68419.0,0.09459028]
[1730657134933,0.091103,68420.0,68419.0,0.03642265]
[1730657136836,0.091103,68420.0,68419.0,0.002]
[1730657137230,0.091103,68420.0,68419.0,0.06016763]
[1730657138441,0.091103,68420.0,68419.0,0.002]
[1730657138730,0.091103,68420.0,68419.0,0.06035914]
[1730657139731,0.073104,68419.0,68418.0,0.01045914]
[1730657140131,0.07311,68414.0,68413.0,0.07277359]
[1730657140432,0.09831114,68415.0,68411.0,0.43357359]
[1730657140634,0.073112,68412.0,68411.0,0.43357359]
[1730657140935,0.073112,68412.0,68407.0,0.08732831]
[1730657140936,0.073116,68408.0,68407.0,0.07277359]
[1730657141131,0.073117,68407.0,68406.0,0.07277359]
[1730657141328,0.073118,68406.0,68404.0,0.14589359]
[1730657141629,0.073119,68405.0,68404.0,0.14589359]
[1730657141830,0.073119,68405.0,68404.0,0.1658067]
[1730657142335,0.073119,68405.0,68404.0,0.18020546]
[1730657142539,0.073119,68405.0,68404.0,0.0926867]
[1730657143128,0.074119,68405.0,68404.0,0.1036867]
[1730657143335,0.074119,68405.0,68404.0,0.19118975]
[1730657143831,0.001,68405.0,68404.0,0.36261526]
[1730657144031,0.001,68405.0,68404.0,0.27511784]
[1730657144237,0.002,68405.0,68404.0,0.42664274]
[1730657145134,0.073113,68411.0,68404.0,0.42664274]
[1730657145330,0.073113,68411.0,68409.0,0.08747475]
[1730657145531,0.073113,68411.0,68410.0,0.18016145]
[1730657145845,0.09848,68422.0,68410.0,0.18016145]
[1730657146047,0.073107,68416.0,68414.0,0.07289081]
[1730657146344,0.073108,68415.0,68414.0,0.07289081]
[1730657146544,0.073108,68415.0,68414.0,0.16518658]
[1730657146841,0.073108,68415.0,68414.0,0.09229577]
[1730657147932,0.073108,68415.0,68414.0,0.16518791]
[1730657148438,0.077108,68415.0,68414.0,0.09229577]
[1730657148634,0.077108,68415.0,68414.0,0.16519202]
[1730657148932,0.077108,68415.0,68414.0,0.09229577]
[1730657149135,0.083108,68415.0,68414.0,0.09229577]
[1730657149928,0.073111,68413.0,68409.0,0.07289884]
[1730657150938,0.073111,68413.0,68410.0,0.07289884]
[1730657151135,0.074111,68413.0,68409.0,0.07989884]
[1730657151731,0.001,68413.0,68409.0,0.07989884]
[1730657151935,0.073114,68410.0,68409.0,0.07989884]
[1730657152348,0.073114,68410.0,68409.0,0.08589884]
[1730657153237,0.073114,68410.0,68409.0,0.16522043]
[1730657153438,0.074114,68410.0,68409.0,0.07889884]
[1730657153836,0.074114,68410.0,68409.0,0.17123566]
[1730657154244,0.075114,68410.0,68409.0,0.17823566]
[1730657154435,0.075114,68410.0,68409.0,0.08589884]
[1730657155245,0.075114,68410.0,68409.0,0.17827466]
[1730657156849,0.075114,68410.0,68409.0,0.21550567]
[1730657160235,0.075114,68410.0,68409.0,0.19294904]
[1730657160438,0.075114,68410.0,68409.0,0.10537582]
[1730657162841,0.169314,68410.0,68409.0,0.013]
[1730657172449,0.108114,68410.0,68409.0,0.013]
[1730657172752,0.108114,68410.0,68409.0,0.08600386]
[1730657173558,0.108114,68410.0,68409.0,0.10568836]
[1730657173750,0.108114,68410.0,68409.0,0.10561281]
[1730657176451,0.108114,68410.0,68409.0,0.17854901]
[1730657176752,0.108114,68410.0,68409.0,0.10561281]
[1730657177969,0.108114,68410.0,68409.0,0.21509805]
[1730657178155,0.108114,68410.0,68409.0,0.04954489]
[1730657180255,0.468914,68410.0,68409.0,0.04954489]
[1730657182154,0.108114,68410.0,68409.0,0.04954489]
[1730657182366,0.468914,68410.0,68409.0,0.04954489]
[1730657182558,0.108114,68410.0,68409.0,0.04954489]
[1730657182755,0.468914,68410.0,68409.0,0.04954489]
[1730657183067,0.468914,68410.0,68409.0,0.12248524]
[1730657185157,0.468914,68410.0,68409.0,0.21525034]
[1730657185351,0.468914,68410.0,68409.0,0.14230999]
[1730657185557,0.468914,68410.0,68409.0,0.21530686]
[1730657186371,0.468914,68410.0,68409.0,0.14230999]
[1730657190963,0.468914,68410.0,68409.0,0.17885488]
[1730657191954,0.435914,68410.0,68409.0,0.17885488]
[1730657192165,0.075114,68410.0,68409.0,0.2664281]
[1730657192360,0.075114,68410.0,68409.0,0.17885488]
[1730657193062,0.075114,68410.0,68409.0,0.28940441]
[1730657195268,0.075114,68410.0,68409.0,0.17885488]
[1730657200782,0.075114,68410.0,68409.0,0.28934454]
[1730657201393,0.075114,68410.0,68409.0,0.65014454]
[1730657202379,0.075114,68410.0,68409.0,0.28934454]
[1730657202874,0.13963915,68410.0,68409.0,0.28934454]
[1730657203780,0.13963915,68410.0,68409.0,0.65014454]
[1730657203981,0.13963915,68410.0,68409.0,0.28934454]
[1730657204167,0.13963915,68410.0,68409.0,0.17885488]
[1730657204970,0.13963915,68410.0,68409.0,0.28920703]
[1730657206372,0.13863915,68410.0,68409.0,0.28320703]
[1730657206574,0.13963915,68410.0,68409.0,0.29320703]
[1730657206770,0.13863915,68410.0,68409.0,0.28620703]
[1730657206972,0.13863915,68410.0,68409.0,0.28720703]
[1730657207182,0.13963915,68410.0,68409.0,0.29920703]
[1730657208184,0.13863915,68410.0,68409.0,0.28820703]
[1730657208379,0.13963915,68410.0,68409.0,0.29920703]
[1730657208588,0.001,68410.0,68409.0,0.36073218]
[1730657208785,0.3608,68416.0,68409.0,0.43370355]
[1730657209080,0.3608,68416.0,68415.0,0.22517577]
[1730657209381,0.3608,68416.0,68415.0,0.25317811]
[1730657210179,0.3608,68416.0,68415.0,0.16564974]
[1730657210875,0.3608,68416.0,68415.0,0.17164974]
[1730657211389,0.3608,68416.0,68415.0,0.09654174]
[1730657211575,0.3608,68416.0,68415.0,0.10254174]
[1730657211576,0.433907,68416.0,68415.0,0.10254174]
[1730657211978,0.433907,68416.0,68415.0,0.10454174]
[1730657212877,0.433907,68416.0,68415.0,0.18607011]
[1730657213191,0.434907,68416.0,68415.0,0.19307011]
[1730657213781,0.433907,68416.0,68415.0,0.19307011]
[1730657213981,0.434907,68416.0,68415.0,0.19307011]
[1730657214885,0.434907,68416.0,68415.0,0.10554174]
[1730657215185,0.434907,68416.0,68415.0,0.19302552]
[1730657217589,0.074107,68416.0,68415.0,0.22889172]
[1730657217886,0.074107,68416.0,68415.0,0.22876338]
[1730657218677,0.074107,68416.0,68415.0,0.1412796]
[1730657218882,0.074107,68416.0,68415.0,0.22875747]
[1730657219289,0.074107,68416.0,68415.0,0.1412796]
[1730657219486,0.074107,68416.0,68415.0,0.22875812]
[1730657220490,0.001,68416.0,68415.0,0.2143876]
[1730657220683,0.001,68416.0,68415.0,0.5751876]
[1730657220883,0.001,68416.0,68415.0,0.68508952]
[1730657221590,0.00219301,68424.0,68415.0,1.12356952]
[1730657221889,0.00219301,68424.0,68423.0,0.4339]
[1730657222090,0.073085,68437.0,68427.0,0.073096]
[1730657222291,0.0333,68440.0,68423.0,0.56262511]
[1730657222292,0.0333,68440.0,68432.0,0.07284923]
[1730657222593,0.0333,68440.0,68439.0,0.04369057]
[1730657222795,0.073084,68438.0,68437.0,0.05825711]
[1730657222988,0.073087,68436.0,68433.0,0.07284923]
[1730657223298,0.3608,68462.0,68435.0,0.44821907]
[1730657223481,0.3608,68462.0,68461.0,0.04358592]
[1730657223682,0.3608,68462.0,68460.0,0.05812322]
[1730657223884,0.3608,68462.0,68458.0,0.07265403]
[1730657224087,0.3608,68462.0,68461.0,0.073059]
[1730657224579,0.3608,68462.0,68461.0,0.04350667]
[1730657224986,0.3608,68462.0,68460.0,0.07306]
[1730657225294,0.3608,68462.0,68461.0,0.001]
[1730657225893,0.3608,68462.0,68461.0,0.006]
[1730657226290,0.3618,68462.0,68461.0,0.013]
[1730657226890,0.3608,68462.0,68461.0,0.006]
[1730657227091,0.3618,68462.0,68461.0,0.018]
[1730657227401,0.3618,68462.0,68461.0,0.012]
[1730657227592,0.3618,68462.0,68461.0,0.024]
[1730657228599,0.3618,68462.0,68461.0,0.019]
[1730657228803,0.001,68462.0,68461.0,0.019]
[1730657229895,0.001,68462.0,68461.0,0.024]
[1730657232091,0.001,68462.0,68461.0,0.097059]
[1730657237004,0.001,68462.0,68461.0,0.19537124]
[1730657239304,0.001,68462.0,68461.0,0.097059]
[1730657241404,0.001,68462.0,68461.0,0.457859]
[1730657246412,0.001,68462.0,68461.0,0.3848]
[1730657246716,0.001,68462.0,68461.0,0.457859]
[1730657249417,0.001,68462.0,68461.0,0.52233519]
[1730657251707,0.001,68462.0,68461.0,0.6121472]
[1730657252818,0.001,68462.0,68461.0,0.6123032]
[1730657253415,0.001,68462.0,68461.0,0.71960664]
[1730657259310,0.001,68462.0,68461.0,0.35880664]
[1730657262509,0.001,68462.0,68461.0,0.16153519]
[1730657264225,0.001,68462.0,68461.0,0.52233519]
[1730657265524,0.001,68462.0,68461.0,0.16153519]
[1730657265726,0.001,68462.0,68461.0,0.52233519]
[1730657267723,0.20301038,68462.0,68461.0,0.08233966]
[1730657267923,0.073065,68456.0,68455.0,0.05833966]
[1730657268128,0.073066,68455.0,68453.0,0.09265848]
[1730657268324,0.104066,68455.0,68453.0,0.05833966]
[1730657268527,0.104066,68455.0,68451.0,0.05833966]
[1730657269014,0.073067,68454.0,68451.0,0.05833966]
[1730657269225,0.073067,68454.0,68450.0,0.05833966]
[1730657269424,0.073067,68454.0,68451.0,0.09026878]
[1730657269623,0.073067,68454.0,68452.0,0.09026878]
[1730657269823,0.031,68455.0,68453.0,0.09026878]
[1730657270018,0.031,68455.0,68454.0,0.09026878]
[1730657270229,0.104066,68455.0,68454.0,0.09026878]
[1730657270731,0.104066,68455.0,68454.0,0.16311701]
[1730657270919,0.104066,68455.0,68454.0,0.07284823]
[1730657271121,0.164966,68455.0,68454.0,0.16321415]
[1730657271641,0.164966,68455.0,68453.0,0.07284823]
[1730657271642,0.073067,68454.0,68453.0,0.07284823]
[1730657271931,0.073067,68454.0,68453.0,0.09031797]
[1730657272120,0.073067,68454.0,68453.0,0.1631517]
[1730657272523,0.073067,68454.0,68453.0,0.07283373]
[1730657273023,0.075067,68454.0,68453.0,0.11231037]
[1730657275820,0.075067,68454.0,68453.0,0.11223994]
[1730657276932,0.075067,68454.0,68453.0,0.18502739]
[1730657277230,0.075067,68454.0,68453.0,0.18502828]
[1730657280531,0.075067,68454.0,68453.0,0.18507111]
[1730657280836,0.075067,68454.0,68453.0,0.022]
[1730657286439,0.002,68454.0,68453.0,0.16785634]
[1730657286645,0.002,68454.0,68453.0,0.27253131]
[1730657287041,0.002,68454.0,68453.0,0.18507054]
[1730657287240,0.002,68454.0,68453.0,0.2723109]
[1730657287440,0.002,68454.0,68453.0,0.18507054]
[1730657287638,0.002,68454.0,68453.0,0.29207276]
[1730657287837,0.002,68454.0,68453.0,0.29206601]
[1730657289237,0.002,68454.0,68453.0,0.2917787]
[1730657290045,0.002,68454.0,68453.0,0.2187107]
[1730657290240,0.075067,68454.0,68453.0,0.19900878]
[1730657292435,0.075067,68454.0,68453.0,0.11174185]
[1730657293736,0.075067,68454.0,68453.0,0.11207757]
[1730657294146,0.075067,68454.0,68453.0,0.022]
[1730657294342,0.137867,68454.0,68453.0,0.022]
[1730657294850,0.137867,68454.0,68453.0,0.11217315]
[1730657295550,0.20236185,68454.0,68453.0,0.11217315]
[1730657295751,0.20236185,68454.0,68453.0,0.09479097]
[1730657296743,0.20236185,68454.0,68453.0,0.022]
[1730657301056,0.20236185,68454.0,68453.0,0.11242994]
[1730657301452,0.137867,68454.0,68453.0,0.17692479]
[1730657301658,0.075067,68454.0,68453.0,0.17692479]
[1730657301957,0.075067,68454.0,68453.0,0.11242994]
[1730657304164,0.075067,68454.0,68453.0,0.022]
[1730657306051,0.075067,68454.0,68453.0,0.26415667]
[1730657306253,0.075067,68454.0,68453.0,0.17674501]
[1730657306451,0.075067,68454.0,68453.0,0.28407184]
[1730657306452,0.002,68454.0,68453.0,0.28407184]
[1730657306750,0.002,68454.0,68453.0,0.75033984]
[1730657308847,0.002,68454.0,68453.0,0.67727184]
[1730657309051,0.002,68454.0,68453.0,0.67664076]
[1730657309659,0.002,68454.0,68453.0,0.74970876]
[1730657309860,0.3608,68472.0,68459.0,0.06449485]
[1730657310063,0.3608,68472.0,68471.0,0.13726773]
[1730657310365,0.3608,68472.0,68471.0,0.08984916]
[1730657310366,0.433848,68472.0,68471.0,0.08984916]
[1730657310572,0.433848,68472.0,68471.0,0.16258056]
[1730657310752,0.433848,68472.0,68471.0,0.08984916]
[1730657311455,0.433848,68472.0,68471.0,0.09084916]
[1730657311667,0.444848,68472.0,68471.0,0.16355735]
[1730657312363,0.453848,68472.0,68471.0,0.002]
[1730657312863,0.453848,68472.0,68471.0,0.03051194]
[1730657317171,0.3808,68472.0,68471.0,0.03051194]
[1730657317669,0.02,68472.0,68471.0,0.03051194]
[1730657320769,0.02,68472.0,68471.0,0.12875824]
[1730657321078,0.02,68472.0,68471.0,0.20180724]
[1730657321476,0.3608,68477.0,68476.0,0.073043]
[1730657321770,0.3608,68477.0,68472.0,0.073047]
[1730657321977,0.3608,68477.0,68473.0,0.073046]
[1730657322166,0.3608,68477.0,68476.0,0.1712893]
[1730657322468,0.3608,68477.0,68476.0,0.13117796]
[1730657322658,0.3608,68477.0,68476.0,0.05913496]
[1730657322659,0.447842,68477.0,68476.0,0.05913496]
[1730657322857,0.447842,68477.0,68476.0,0.001]
[1730657324069,0.447842,68477.0,68476.0,0.03750914]
[1730657324566,0.448842,68477.0,68476.0,0.03750914]
[1730657324769,0.43812,68476.0,68467.0,0.07270819]
[1730657324969,0.073066,68455.0,68454.0,0.07270819]
[1730657325273,0.4590463,68461.0,68452.0,0.07270819]
[1730657325466,0.073067,68454.0,68452.0,0.07270819]
[1730657325665,0.4590463,68461.0,68452.0,0.07270819]
[1730657325874,0.073067,68454.0,68452.0,0.07270819]
[1730657326269,0.4590463,68461.0,68452.0,0.07270819]
[1730657326461,0.07307,68451.0,68449.0,0.07270819]
[1730657326777,0.073072,68449.0,68448.0,0.07270819]
[1730657327082,0.073072,68449.0,68448.0,0.16357791]